[Event "Titled Tuesday Blitz November 07 Late 2023"]
[White "Holt, Conrad"]
[Black "Koziorowicz, Michal"]
[WhiteFideId "2034387"]
[BlackFideId "21809194"]
[WhiteElo "2810"]
[BlackElo "2550"]
[Result "1/2-1/2"]
[Round "2"]
[TimeControl "180+1"]
[Date "2023.11.07"]
[WhiteClock "0:00:14"]
[BlackClock "0:01:28"]
[Board "46"]

1. d4 {[%clk 0:03:00]}  Nf6 {[%clk 0:02:59]} 2. c4 {[%clk 0:03:01]}  g6 {[%clk 0:03:00]} 3. Nc3 {[%clk 0:03:01]}  Bg7 {[%clk 0:03:01]} 4. e4 {[%clk 0:03:01]}  d6 {[%clk 0:03:01]} 5. Nf3 {[%clk 0:03:02]}  O-O {[%clk 0:03:01]} 6. h3 {[%clk 0:03:02]}  e5 {[%clk 0:03:00]} 7. dxe5 {[%clk 0:03:02]}  dxe5 {[%clk 0:03:01]} 8. Qxd8 {[%clk 0:03:03]}  Rxd8 {[%clk 0:03:02]} 9. Bg5 {[%clk 0:03:03]}  Re8 {[%clk 0:03:01]} 10. Nd5 {[%clk 0:03:03]}  Nxd5 {[%clk 0:02:58]} 11. cxd5 {[%clk 0:03:04]}  c6 {[%clk 0:02:59]} 12. Bc4 {[%clk 0:03:04]}  cxd5 {[%clk 0:02:59]} 13. Bxd5 {[%clk 0:03:04]}  Nc6 {[%clk 0:02:59]} 14. Ke2 {[%clk 0:03:04]}  Be6 {[%clk 0:02:59]} 15. Bxe6 {[%clk 0:03:02]}  Rxe6 {[%clk 0:03:00]} 16. Rhd1 {[%clk 0:03:02]}  Nd4+ {[%clk 0:02:56]} 17. Nxd4 {[%clk 0:03:02]}  exd4 {[%clk 0:02:57]} 18. Kd3 {[%clk 0:03:03]}  Rb6 {[%clk 0:02:51]} 19. Rab1 {[%clk 0:02:55]}  h6 {[%clk 0:02:49]} 20. Bd2 {[%clk 0:02:49]}  Rc8 {[%clk 0:02:48]} 21. Rdc1 {[%clk 0:02:42]}  Rxc1 {[%clk 0:02:40]} 22. Bxc1 {[%clk 0:02:42]}  Kf8 {[%clk 0:02:34]} 23. b3 {[%clk 0:02:34]}  Ke7 {[%clk 0:02:31]} 24. Bb2 {[%clk 0:02:29]}  Ke6 {[%clk 0:02:27]} 25. Rc1 {[%clk 0:02:27]}  f5 {[%clk 0:02:27]} 26. exf5+ {[%clk 0:02:25]}  gxf5 {[%clk 0:02:27]} 27. Rc4 {[%clk 0:02:18]}  h5 {[%clk 0:02:20]} 28. Bxd4 {[%clk 0:02:17]}  Rd6 {[%clk 0:02:19]} 29. a4 {[%clk 0:02:12]}  Rd5 {[%clk 0:02:14]} 30. Kc3 {[%clk 0:02:00]}  b5 {[%clk 0:02:13]} 31. axb5 {[%clk 0:01:56]}  Bxd4+ {[%clk 0:02:13]} 32. Rxd4 {[%clk 0:01:57]}  Rxb5 {[%clk 0:02:14]} 33. Rh4 {[%clk 0:01:56]}  Ra5 {[%clk 0:02:10]} 34. Rxh5 {[%clk 0:01:54]}  Ra2 {[%clk 0:02:10]} 35. f4 {[%clk 0:01:41]}  Rxg2 {[%clk 0:02:09]} 36. Kd4 {[%clk 0:01:04]}  Rd2+ {[%clk 0:02:04]} 37. Kc5 {[%clk 0:01:04]}  Rc2+ {[%clk 0:01:59]} 38. Kb5 {[%clk 0:01:01]}  Rf2 {[%clk 0:02:00]} 39. Rh4 {[%clk 0:00:45]}  Kd5 {[%clk 0:02:00]} 40. b4 {[%clk 0:00:44]}  Ke4 {[%clk 0:01:58]} 41. Ka6 {[%clk 0:00:36]}  Ra2+ {[%clk 0:01:58]} 42. Kb5 {[%clk 0:00:34]}  Kf3 {[%clk 0:01:58]} 43. Kc6 {[%clk 0:00:22]}  Kg3 {[%clk 0:01:59]} 44. Rh7 {[%clk 0:00:20]}  Kxf4 {[%clk 0:01:59]} 45. Rf7 {[%clk 0:00:17]}  Ke5 {[%clk 0:01:56]} 46. b5 {[%clk 0:00:16]}  f4 {[%clk 0:01:56]} 47. h4 {[%clk 0:00:15]}  Ke4 {[%clk 0:01:53]} 48. h5 {[%clk 0:00:14]}  Rh2 {[%clk 0:01:44]} 49. Re7+ {[%clk 0:00:13]}  Kd3 {[%clk 0:01:41]} 50. Rxa7 {[%clk 0:00:13]}  Rxh5 {[%clk 0:01:41]} 51. Rf7 {[%clk 0:00:14]}  Ke3 {[%clk 0:01:37]} 52. b6 {[%clk 0:00:14]}  Rh6+ {[%clk 0:01:37]} 53. Kc5 {[%clk 0:00:13]}  Rh1 {[%clk 0:01:37]} 54. b7 {[%clk 0:00:13]}  Rb1 {[%clk 0:01:36]} 55. Re7+ {[%clk 0:00:13]}  Kf2 {[%clk 0:01:35]} 56. Kc6 {[%clk 0:00:13]}  f3 {[%clk 0:01:34]} 57. Re5 {[%clk 0:00:13]}  Rxb7 {[%clk 0:01:26]} 58. Kxb7 {[%clk 0:00:13]}  Kg1 {[%clk 0:01:27]} 59. Kc6 {[%clk 0:00:14]}  f2 {[%clk 0:01:27]} 60. Rf5 {[%clk 0:00:14]}  f1=Q {[%clk 0:01:27]} 61. Rxf1+ {[%clk 0:00:14]}  Kxf1 {[%clk 0:01:28]} 1/2-1/2


[Site "https://www.chess.com"]

[Event "Titled Tuesday Blitz November 07 Late 2023"]
[White "Lymar, Vladislav"]
[Black "Blohberger, Felix"]
[WhiteFideId "14162180"]
[BlackFideId "1632051"]
[WhiteElo "2549"]
[BlackElo "2808"]
[Result "0-1"]
[Round "2"]
[TimeControl "180+1"]
[Date "2023.11.07"]
[WhiteClock "0:00:11"]
[BlackClock "0:00:06"]
[Board "47"]

1. d4 {[%clk 0:03:00]}  Nf6 {[%clk 0:02:59]} 2. c4 {[%clk 0:03:00]}  g6 {[%clk 0:03:00]} 3. Nc3 {[%clk 0:03:00]}  Bg7 {[%clk 0:03:01]} 4. e4 {[%clk 0:03:00]}  d6 {[%clk 0:03:01]} 5. Nf3 {[%clk 0:03:01]}  O-O {[%clk 0:03:02]} 6. Be2 {[%clk 0:03:01]}  e5 {[%clk 0:03:02]} 7. d5 {[%clk 0:03:01]}  Na6 {[%clk 0:02:53]} 8. Bg5 {[%clk 0:02:35]}  h6 {[%clk 0:02:49]} 9. Be3 {[%clk 0:02:34]}  Ng4 {[%clk 0:02:47]} 10. Bd2 {[%clk 0:02:32]}  f5 {[%clk 0:02:47]} 11. exf5 {[%clk 0:02:31]}  gxf5 {[%clk 0:02:47]} 12. h3 {[%clk 0:02:30]}  Nf6 {[%clk 0:02:47]} 13. Qc1 {[%clk 0:02:29]}  f4 {[%clk 0:02:46]} 14. g3 {[%clk 0:02:24]}  e4 {[%clk 0:02:45]} 15. Nh4 {[%clk 0:02:21]}  e3 {[%clk 0:02:46]} 16. fxe3 {[%clk 0:02:21]}  fxg3 {[%clk 0:02:46]} 17. Ng6 {[%clk 0:02:18]}  Re8 {[%clk 0:02:45]} 18. Nf4 {[%clk 0:02:13]}  Nc5 {[%clk 0:02:40]} 19. Qc2 {[%clk 0:02:10]}  Nfe4 {[%clk 0:02:35]} 20. Nxe4 {[%clk 0:01:15]}  Bf5 {[%clk 0:02:35]} 21. Bf3 {[%clk 0:01:03]}  Rxe4 {[%clk 0:01:55]} 22. Ne6 {[%clk 0:00:42]}  Qh4 {[%clk 0:01:30]} 23. Kd1 {[%clk 0:00:20]}  Nxe6 {[%clk 0:01:21]} 24. dxe6 {[%clk 0:00:19]}  Rf8 {[%clk 0:00:43]} 25. Qb3 {[%clk 0:00:16]}  Bxe6 {[%clk 0:00:32]} 26. Bxe4 {[%clk 0:00:14]}  Qxe4 {[%clk 0:00:33]} 27. Re1 {[%clk 0:00:10]}  Bxc4 {[%clk 0:00:24]} 28. Qc2 {[%clk 0:00:10]}  Bd3 {[%clk 0:00:21]} 29. Qb3+ {[%clk 0:00:10]}  d5 {[%clk 0:00:15]} 30. Qb4 {[%clk 0:00:06]}  Qxb4 {[%clk 0:00:05]} 31. Bxb4 {[%clk 0:00:07]}  Rf2 {[%clk 0:00:04]} 32. Rg1 {[%clk 0:00:06]}  g2 {[%clk 0:00:03]} 33. Rc1 {[%clk 0:00:05]}  Bxb2 {[%clk 0:00:01]} 34. Rxc7 {[%clk 0:00:05]}  Rf1+ {[%clk 0:00:02]} 35. Be1 {[%clk 0:00:03]}  Rxg1 {[%clk 0:00:02]} 36. Rc8+ {[%clk 0:00:04]}  Kf7 {[%clk 0:00:02]} 37. Rc7+ {[%clk 0:00:05]}  Ke6 {[%clk 0:00:03]} 38. Kd2 {[%clk 0:00:06]}  Rxe1 {[%clk 0:00:03]} 39. Rg7 {[%clk 0:00:07]}  g1=Q {[%clk 0:00:03]} 40. Rxg1 {[%clk 0:00:07]}  Rxg1 {[%clk 0:00:04]} 41. Kxd3 {[%clk 0:00:08]}  Rg2 {[%clk 0:00:04]} 42. e4 {[%clk 0:00:09]}  Rg3+ {[%clk 0:00:04]} 43. Ke2 {[%clk 0:00:10]}  dxe4 {[%clk 0:00:04]} 44. Kf2 {[%clk 0:00:11]}  Rf3+ {[%clk 0:00:04]} 45. Kg2 {[%clk 0:00:11]}  Bd4 {[%clk 0:00:05]} 46. Kh2 {[%clk 0:00:11]}  Kf5 {[%clk 0:00:06]} 0-1


[Site "https://www.chess.com"]

[Event "Titled Tuesday Blitz November 07 Late 2023"]
[White "Bordi, Kevin"]
[Black "a-z30"]
[WhiteFideId "621862"]
[WhiteElo "2790"]
[BlackElo "2530"]
[Result "1-0"]
[Round "2"]
[TimeControl "180+1"]
[Date "2023.11.07"]
[WhiteClock "0:01:27"]
[BlackClock "0:00:00"]
[Board "50"]

1. e4 {[%clk 0:03:00]}  d6 {[%clk 0:02:59]} 2. d4 {[%clk 0:03:01]}  Nf6 {[%clk 0:03:00]} 3. Nc3 {[%clk 0:03:01]}  g6 {[%clk 0:03:00]} 4. g3 {[%clk 0:03:02]}  Bg7 {[%clk 0:03:01]} 5. Bg2 {[%clk 0:03:03]}  O-O {[%clk 0:03:01]} 6. Nge2 {[%clk 0:03:03]}  Nbd7 {[%clk 0:03:02]} 7. O-O {[%clk 0:03:04]}  Rb8 {[%clk 0:03:02]} 8. h3 {[%clk 0:03:02]}  c5 {[%clk 0:02:52]} 9. Be3 {[%clk 0:02:58]}  b5 {[%clk 0:02:34]} 10. e5 {[%clk 0:02:50]}  dxe5 {[%clk 0:02:15]} 11. dxc5 {[%clk 0:02:45]}  b4 {[%clk 0:02:06]} 12. Nd5 {[%clk 0:02:39]}  e6 {[%clk 0:01:50]} 13. Nxf6+ {[%clk 0:02:29]}  Bxf6 {[%clk 0:01:25]} 14. a3 {[%clk 0:02:06]}  bxa3 {[%clk 0:01:11]} 15. Rxa3 {[%clk 0:02:07]}  Qc7 {[%clk 0:01:07]} 16. c6 {[%clk 0:02:06]}  Nb6 {[%clk 0:01:06]} 17. Nc3 {[%clk 0:02:05]}  Rd8 {[%clk 0:01:04]} 18. Nb5 {[%clk 0:01:56]}  Rxd1 {[%clk 0:00:54]} 19. Nxc7 {[%clk 0:01:55]}  Rxf1+ {[%clk 0:00:54]} 20. Kxf1 {[%clk 0:01:56]}  Nc4 {[%clk 0:00:46]} 21. Rxa7 {[%clk 0:01:56]}  Nxe3+ {[%clk 0:00:15]} 22. fxe3 {[%clk 0:01:57]}  Be7 {[%clk 0:00:13]} 23. Ne8 {[%clk 0:01:42]}  Kf8 {[%clk 0:00:10]} 24. c7 {[%clk 0:01:32]}  Rxb2 {[%clk 0:00:08]} 25. Ra8 {[%clk 0:01:32]}  Kxe8 {[%clk 0:00:08]} 26. Rxc8+ {[%clk 0:01:33]}  Kd7 {[%clk 0:00:09]} 27. Rb8 {[%clk 0:01:33]}  Rxc2 {[%clk 0:00:04]} 28. Rh8 {[%clk 0:01:32]}  Rxc7 {[%clk 0:00:01]} 29. Rxh7 {[%clk 0:01:33]}  Ke8 {[%clk 0:00:02]} 30. h4 {[%clk 0:01:32]}  Rc2 {[%clk 0:00:02]} 31. Be4 {[%clk 0:01:31]}  Ra2 {[%clk 0:00:02]} 32. Rh8+ {[%clk 0:01:31]}  Kd7 {[%clk 0:00:01]} 33. g4 {[%clk 0:01:31]}  Rb2 {[%clk 0:00:02]} 34. h5 {[%clk 0:01:30]}  gxh5 {[%clk 0:00:02]} 35. gxh5 {[%clk 0:01:31]}  Rh2 {[%clk 0:00:02]} 36. Kg1 {[%clk 0:01:30]}  Rh4 {[%clk 0:00:03]} 37. Bf3 {[%clk 0:01:30]}  f5 {[%clk 0:00:03]} 38. Kg2 {[%clk 0:01:30]}  e4 {[%clk 0:00:04]} 39. Be2 {[%clk 0:01:31]}  Kd6 {[%clk 0:00:04]} 40. Kg3 {[%clk 0:01:31]}  Ke5 {[%clk 0:00:04]} 41. Re8 {[%clk 0:01:29]}  Bf6 {[%clk 0:00:04]} 42. Ra8 {[%clk 0:01:30]}  Rh1 {[%clk 0:00:03]} 43. Ra6 {[%clk 0:01:29]}  Rg1+ {[%clk 0:00:02]} 44. Kh2 {[%clk 0:01:29]}  Rg8 {[%clk 0:00:03]} 45. Bc4 {[%clk 0:01:28]}  Re8 {[%clk 0:00:03]} 46. h6 {[%clk 0:01:28]}  Re7 {[%clk 0:00:04]} 47. Kg3 {[%clk 0:01:28]}  Bg5 {[%clk 0:00:04]} 48. h7 {[%clk 0:01:28]}  Rf7 {[%clk 0:00:00]} 49. h8=Q+ {[%clk 0:01:27]} 1-0


[Site "https://www.chess.com"]

[Event "Titled Tuesday Blitz November 07 Late 2023"]
[White "Shubenkova, Veronika"]
[Black "Troff, Kayden"]
[WhiteFideId "44124040"]
[BlackFideId "2047896"]
[WhiteElo "2529"]
[BlackElo "2786"]
[Result "0-1"]
[Round "2"]
[TimeControl "180+1"]
[Date "2023.11.07"]
[WhiteClock "0:00:19"]
[BlackClock "0:00:14"]
[Board "51"]

1. d4 {[%clk 0:03:00]}  Nf6 {[%clk 0:02:59]} 2. c4 {[%clk 0:03:00]}  g6 {[%clk 0:02:59]} 3. Nc3 {[%clk 0:03:00]}  d5 {[%clk 0:02:58]} 4. e3 {[%clk 0:02:59]}  Bg7 {[%clk 0:02:58]} 5. Nf3 {[%clk 0:02:59]}  O-O {[%clk 0:02:58]} 6. Be2 {[%clk 0:02:55]}  c5 {[%clk 0:02:58]} 7. dxc5 {[%clk 0:02:54]}  dxc4 {[%clk 0:02:51]} 8. Qxd8 {[%clk 0:02:54]}  Rxd8 {[%clk 0:02:50]} 9. Bxc4 {[%clk 0:02:54]}  Nbd7 {[%clk 0:02:41]} 10. c6 {[%clk 0:02:30]}  bxc6 {[%clk 0:02:42]} 11. Ke2 {[%clk 0:02:25]}  Nb6 {[%clk 0:02:34]} 12. Bd3 {[%clk 0:02:24]}  Nfd5 {[%clk 0:02:22]} 13. Nxd5 {[%clk 0:02:20]}  Nxd5 {[%clk 0:02:22]} 14. a3 {[%clk 0:02:20]}  Rb8 {[%clk 0:02:21]} 15. Rb1 {[%clk 0:02:20]}  Rb3 {[%clk 0:02:04]} 16. Rd1 {[%clk 0:02:16]}  Rxd3 {[%clk 0:01:58]} 17. Rxd3 {[%clk 0:02:11]}  Ba6 {[%clk 0:01:57]} 18. Ne1 {[%clk 0:02:11]}  e5 {[%clk 0:01:19]} 19. e4 {[%clk 0:02:10]}  Nb6 {[%clk 0:01:13]} 20. Be3 {[%clk 0:02:08]}  f5 {[%clk 0:01:08]} 21. Bxb6 {[%clk 0:02:03]}  Rxd3 {[%clk 0:01:01]} 22. Be3 {[%clk 0:01:50]}  fxe4 {[%clk 0:00:51]} 23. f3 {[%clk 0:01:26]}  exf3+ {[%clk 0:00:48]} 24. Kxf3 {[%clk 0:01:12]}  Rb3 {[%clk 0:00:39]} 25. Rc1 {[%clk 0:01:09]}  Bb5 {[%clk 0:00:30]} 26. Rc2 {[%clk 0:00:50]}  e4+ {[%clk 0:00:28]} 27. Kxe4 {[%clk 0:00:49]}  Bxb2 {[%clk 0:00:28]} 28. a4 {[%clk 0:00:43]}  Bxa4 {[%clk 0:00:25]} 29. Nd3 {[%clk 0:00:41]}  Ba3 {[%clk 0:00:12]} 30. Ra2 {[%clk 0:00:40]}  Bb5 {[%clk 0:00:12]} 31. Nc5 {[%clk 0:00:29]}  Rxe3+ {[%clk 0:00:12]} 32. Kxe3 {[%clk 0:00:27]}  Bxc5+ {[%clk 0:00:13]} 33. Ke4 {[%clk 0:00:27]}  Bb6 {[%clk 0:00:12]} 34. Ke5 {[%clk 0:00:27]}  Kf7 {[%clk 0:00:12]} 35. Rd2 {[%clk 0:00:24]}  Ke7 {[%clk 0:00:13]} 36. Kf4 {[%clk 0:00:22]}  Bc7+ {[%clk 0:00:13]} 37. Kg5 {[%clk 0:00:23]}  a5 {[%clk 0:00:14]} 38. Kh6 {[%clk 0:00:23]}  Bf4+ {[%clk 0:00:14]} 39. Kxh7 {[%clk 0:00:19]}  Bxd2 {[%clk 0:00:14]} 0-1


[Site "https://www.chess.com"]

[Event "Titled Tuesday Blitz November 07 Late 2023"]
[White "Taboas Rodriguez, Daniel"]
[Black "Goltsev, Dmitry"]
[WhiteFideId "2208466"]
[BlackFideId "24176710"]
[WhiteElo "2516"]
[BlackElo "2756"]
[Result "1-0"]
[Round "2"]
[TimeControl "180+1"]
[Date "2023.11.07"]
[WhiteClock "0:00:05"]
[BlackClock "0:00:00"]
[Board "56"]

1. d4 {[%clk 0:03:00]}  e6 {[%clk 0:02:59]} 2. Nf3 {[%clk 0:03:01]}  Nf6 {[%clk 0:02:58]} 3. c4 {[%clk 0:03:01]}  b6 {[%clk 0:02:56]} 4. Nc3 {[%clk 0:03:01]}  Bb4 {[%clk 0:02:55]} 5. Qc2 {[%clk 0:02:56]}  Ba6 {[%clk 0:02:52]} 6. a3 {[%clk 0:02:57]}  Be7 {[%clk 0:02:52]} 7. e4 {[%clk 0:02:56]}  d6 {[%clk 0:02:45]} 8. e5 {[%clk 0:02:47]}  Nfd7 {[%clk 0:02:41]} 9. Bf4 {[%clk 0:02:46]}  O-O {[%clk 0:02:38]} 10. Bd3 {[%clk 0:02:45]}  h6 {[%clk 0:02:38]} 11. O-O {[%clk 0:02:45]}  dxe5 {[%clk 0:02:36]} 12. dxe5 {[%clk 0:02:43]}  Nc5 {[%clk 0:02:36]} 13. Bh7+ {[%clk 0:02:42]}  Kh8 {[%clk 0:02:36]} 14. Rad1 {[%clk 0:02:43]}  Qe8 {[%clk 0:02:33]} 15. b3 {[%clk 0:02:37]}  Bb7 {[%clk 0:02:30]} 16. b4 {[%clk 0:02:34]}  Ncd7 {[%clk 0:02:28]} 17. Be4 {[%clk 0:02:32]}  Nc6 {[%clk 0:02:24]} 18. Qc1 {[%clk 0:02:10]}  Rb8 {[%clk 0:02:06]} 19. Bxh6 {[%clk 0:02:07]}  Ncxe5 {[%clk 0:02:06]} 20. Nxe5 {[%clk 0:01:23]}  Nxe5 {[%clk 0:02:05]} 21. Bxb7 {[%clk 0:01:12]}  Rxb7 {[%clk 0:02:04]} 22. Bf4 {[%clk 0:01:07]}  Ng6 {[%clk 0:02:00]} 23. Rd3 {[%clk 0:01:02]}  f5 {[%clk 0:01:42]} 24. Re1 {[%clk 0:00:56]}  Bf6 {[%clk 0:01:39]} 25. Nb5 {[%clk 0:00:51]}  Qf7 {[%clk 0:01:31]} 26. Bg5 {[%clk 0:00:20]}  a6 {[%clk 0:01:24]} 27. Nd4 {[%clk 0:00:17]}  e5 {[%clk 0:01:00]} 28. Nc6 {[%clk 0:00:08]}  f4 {[%clk 0:00:39]} 29. Bxf6 {[%clk 0:00:06]}  Qxf6 {[%clk 0:00:40]} 30. b5 {[%clk 0:00:06]}  axb5 {[%clk 0:00:39]} 31. cxb5 {[%clk 0:00:06]}  Nh4 {[%clk 0:00:21]} 32. Rh3 {[%clk 0:00:06]}  Kg8 {[%clk 0:00:06]} 33. Qc4+ {[%clk 0:00:06]}  Rf7 {[%clk 0:00:02]} 34. Nxe5 {[%clk 0:00:05]}  c5 {[%clk 0:00:01]} 35. bxc6 {[%clk 0:00:06]}  Rc7 {[%clk 0:00:01]} 36. Nxf7 {[%clk 0:00:05]}  Rxf7 {[%clk 0:00:00]} 37. c7 {[%clk 0:00:05]} 1-0


[Site "https://www.chess.com"]

[Event "Titled Tuesday Blitz November 07 Late 2023"]
[White "Krzyzanowski, Marcin"]
[Black "TimGrutter03"]
[WhiteFideId "1132199"]
[WhiteElo "2756"]
[BlackElo "2515"]
[Result "1-0"]
[Round "2"]
[TimeControl "180+1"]
[Date "2023.11.07"]
[WhiteClock "0:00:11"]
[BlackClock "0:00:00"]
[Board "57"]

1. e4 {[%clk 0:03:00]}  c6 {[%clk 0:03:00]} 2. d4 {[%clk 0:02:59]}  d5 {[%clk 0:03:00]} 3. e5 {[%clk 0:02:57]}  c5 {[%clk 0:03:00]} 4. Nf3 {[%clk 0:02:55]}  cxd4 {[%clk 0:03:00]} 5. Qxd4 {[%clk 0:02:56]}  Nc6 {[%clk 0:02:50]} 6. Qf4 {[%clk 0:02:56]}  e6 {[%clk 0:02:36]} 7. Bd3 {[%clk 0:02:56]}  Nge7 {[%clk 0:02:34]} 8. O-O {[%clk 0:02:51]}  Ng6 {[%clk 0:02:34]} 9. Qg3 {[%clk 0:02:45]}  Nb4 {[%clk 0:02:25]} 10. h4 {[%clk 0:02:40]}  Nxd3 {[%clk 0:02:23]} 11. cxd3 {[%clk 0:02:41]}  Ne7 {[%clk 0:02:23]} 12. Bg5 {[%clk 0:02:28]}  Qb6 {[%clk 0:02:23]} 13. Bxe7 {[%clk 0:02:23]}  Bxe7 {[%clk 0:02:24]} 14. Qxg7 {[%clk 0:02:20]}  Rf8 {[%clk 0:02:24]} 15. Nbd2 {[%clk 0:02:13]}  Bd7 {[%clk 0:02:23]} 16. Rac1 {[%clk 0:02:06]}  Bc6 {[%clk 0:02:23]} 17. Nb3 {[%clk 0:02:01]}  O-O-O {[%clk 0:02:21]} 18. Qxh7 {[%clk 0:02:00]}  Kb8 {[%clk 0:02:14]} 19. Nbd4 {[%clk 0:01:54]}  Bd7 {[%clk 0:02:13]} 20. h5 {[%clk 0:01:32]}  Bc5 {[%clk 0:01:57]} 21. Nb3 {[%clk 0:01:30]}  Be7 {[%clk 0:01:56]} 22. h6 {[%clk 0:01:19]}  Rde8 {[%clk 0:01:45]} 23. Qg7 {[%clk 0:01:13]}  Rg8 {[%clk 0:01:44]} 24. Qxf7 {[%clk 0:01:09]}  Rgf8 {[%clk 0:01:37]} 25. Qh5 {[%clk 0:01:05]}  Rf5 {[%clk 0:01:33]} 26. Qg4 {[%clk 0:01:04]}  Rh8 {[%clk 0:01:19]} 27. h7 {[%clk 0:01:01]}  Qd8 {[%clk 0:00:58]} 28. Qg6 {[%clk 0:00:46]}  Be8 {[%clk 0:00:17]} 29. Qxe6 {[%clk 0:00:36]}  Rxf3 {[%clk 0:00:17]} 30. gxf3 {[%clk 0:00:30]}  Rxh7 {[%clk 0:00:17]} 31. Rfd1 {[%clk 0:00:23]}  Bg5 {[%clk 0:00:15]} 32. Rc5 {[%clk 0:00:13]}  Bc6 {[%clk 0:00:13]} 33. Nd4 {[%clk 0:00:10]}  Qh8 {[%clk 0:00:02]} 34. Nxc6+ {[%clk 0:00:10]}  bxc6 {[%clk 0:00:02]} 35. Qd6+ {[%clk 0:00:11]}  Ka8 {[%clk 0:00:01]} 36. Qxc6+ {[%clk 0:00:11]}  Kb8 {[%clk 0:00:00]} 37. Rb5+ {[%clk 0:00:11]} 1-0


[Site "https://www.chess.com"]

[Event "Titled Tuesday Blitz November 07 Late 2023"]
[White "Korchmar, Vasiliy"]
[Black "Ronka, Erik"]
[WhiteFideId "24131750"]
[BlackFideId "505080"]
[WhiteElo "2748"]
[BlackElo "2513"]
[Result "1-0"]
[Round "2"]
[TimeControl "180+1"]
[Date "2023.11.07"]
[WhiteClock "0:01:57"]
[BlackClock "0:00:56"]
[Board "58"]

1. e4 {[%clk 0:03:00]}  c5 {[%clk 0:03:00]} 2. d4 {[%clk 0:03:00]}  cxd4 {[%clk 0:03:00]} 3. Qxd4 {[%clk 0:03:01]}  Nc6 {[%clk 0:03:00]} 4. Qd3 {[%clk 0:03:01]}  g6 {[%clk 0:02:56]} 5. Nc3 {[%clk 0:03:02]}  Bg7 {[%clk 0:02:57]} 6. Nf3 {[%clk 0:03:02]}  d6 {[%clk 0:02:56]} 7. Be2 {[%clk 0:03:03]}  Nf6 {[%clk 0:02:56]} 8. O-O {[%clk 0:03:04]}  O-O {[%clk 0:02:56]} 9. Nd5 {[%clk 0:03:04]}  Nd7 {[%clk 0:02:50]} 10. c3 {[%clk 0:03:03]}  b6 {[%clk 0:02:47]} 11. Bg5 {[%clk 0:03:01]}  Bb7 {[%clk 0:02:48]} 12. Rad1 {[%clk 0:03:00]}  Re8 {[%clk 0:02:40]} 13. Qe3 {[%clk 0:03:00]}  Nf8 {[%clk 0:02:25]} 14. h4 {[%clk 0:02:53]}  Ne6 {[%clk 0:02:23]} 15. Bh6 {[%clk 0:02:52]}  Bh8 {[%clk 0:02:22]} 16. h5 {[%clk 0:02:51]}  Qc8 {[%clk 0:02:11]} 17. g3 {[%clk 0:02:50]}  Ne5 {[%clk 0:02:08]} 18. Nxe5 {[%clk 0:02:40]}  Bxe5 {[%clk 0:02:09]} 19. Kg2 {[%clk 0:02:41]}  Nc7 {[%clk 0:01:54]} 20. Bf3 {[%clk 0:02:27]}  e6 {[%clk 0:01:52]} 21. Nf4 {[%clk 0:02:20]}  d5 {[%clk 0:01:38]} 22. Rh1 {[%clk 0:02:09]}  dxe4 {[%clk 0:01:30]} 23. Bxe4 {[%clk 0:02:10]}  Bxe4+ {[%clk 0:01:29]} 24. Qxe4 {[%clk 0:02:10]}  Bf6 {[%clk 0:01:10]} 25. hxg6 {[%clk 0:02:09]}  hxg6 {[%clk 0:01:07]} 26. Nxg6 {[%clk 0:02:10]}  Nd5 {[%clk 0:00:56]} 27. Qg4 {[%clk 0:01:57]} 1-0


[Site "https://www.chess.com"]

[Event "Titled Tuesday Blitz November 07 Late 2023"]
[White "Hambleton, Aman"]
[Black "Khater, Sherif"]
[WhiteFideId "2606577"]
[BlackFideId "2034280"]
[WhiteElo "2743"]
[BlackElo "2492"]
[Result "1-0"]
[Round "2"]
[TimeControl "180+1"]
[Date "2023.11.07"]
[WhiteClock "0:00:05"]
[BlackClock "0:00:30"]
[Board "60"]

1. d4 {[%clk 0:03:00]}  a6 {[%clk 0:03:00]} 2. e4 {[%clk 0:03:00]}  c6 {[%clk 0:03:00]} 3. Nf3 {[%clk 0:02:58]}  d5 {[%clk 0:03:01]} 4. e5 {[%clk 0:02:56]}  Bf5 {[%clk 0:03:01]} 5. Be2 {[%clk 0:02:54]}  e6 {[%clk 0:03:01]} 6. O-O {[%clk 0:02:54]}  h6 {[%clk 0:03:02]} 7. Be3 {[%clk 0:02:47]}  Ne7 {[%clk 0:03:02]} 8. Nbd2 {[%clk 0:02:40]}  Nd7 {[%clk 0:03:01]} 9. a4 {[%clk 0:02:32]}  Bh7 {[%clk 0:03:00]} 10. Nb3 {[%clk 0:02:30]}  Ng6 {[%clk 0:03:00]} 11. a5 {[%clk 0:02:25]}  Be7 {[%clk 0:03:00]} 12. Bd3 {[%clk 0:01:51]}  O-O {[%clk 0:02:59]} 13. Re1 {[%clk 0:01:44]}  c5 {[%clk 0:02:56]} 14. Nxc5 {[%clk 0:01:29]}  Bxc5 {[%clk 0:02:50]} 15. dxc5 {[%clk 0:01:13]}  Ngxe5 {[%clk 0:02:48]} 16. Nxe5 {[%clk 0:01:12]}  Nxe5 {[%clk 0:02:49]} 17. Bxh7+ {[%clk 0:01:11]}  Kxh7 {[%clk 0:02:50]} 18. Bxh6 {[%clk 0:01:05]}  gxh6 {[%clk 0:02:32]} 19. Rxe5 {[%clk 0:01:05]}  Qf6 {[%clk 0:02:33]} 20. Qd3+ {[%clk 0:01:00]}  Kh8 {[%clk 0:02:32]} 21. Rae1 {[%clk 0:01:00]}  Rg8 {[%clk 0:02:32]} 22. b4 {[%clk 0:00:37]}  Rg4 {[%clk 0:02:28]} 23. c3 {[%clk 0:00:37]}  Rag8 {[%clk 0:02:28]} 24. g3 {[%clk 0:00:38]}  R8g6 {[%clk 0:02:07]} 25. Kg2 {[%clk 0:00:36]}  Rf4 {[%clk 0:01:58]} 26. Qe3 {[%clk 0:00:24]}  Rc4 {[%clk 0:01:51]} 27. Rd1 {[%clk 0:00:21]}  Kg7 {[%clk 0:01:42]} 28. Rd4 {[%clk 0:00:19]}  Rxd4 {[%clk 0:01:42]} 29. Qxd4 {[%clk 0:00:09]}  Kh7 {[%clk 0:01:37]} 30. Re3 {[%clk 0:00:08]}  Qd8 {[%clk 0:01:11]} 31. Qe5 {[%clk 0:00:08]}  Kg8 {[%clk 0:01:06]} 32. h4 {[%clk 0:00:07]}  Rg4 {[%clk 0:00:51]} 33. Rf3 {[%clk 0:00:05]}  d4 {[%clk 0:00:46]} 34. Rd3 {[%clk 0:00:04]}  Qxh4 {[%clk 0:00:34]} 35. Rxd4 {[%clk 0:00:04]}  Qg5 {[%clk 0:00:28]} 36. Qxg5+ {[%clk 0:00:04]}  Rxg5 {[%clk 0:00:29]} 37. Rd7 {[%clk 0:00:03]}  Rg4 {[%clk 0:00:28]} 38. Rxb7 {[%clk 0:00:03]}  Rc4 {[%clk 0:00:29]} 39. Rb6 {[%clk 0:00:03]}  Rxc3 {[%clk 0:00:30]} 40. Rxa6 {[%clk 0:00:04]}  Rc4 {[%clk 0:00:31]} 41. Rb6 {[%clk 0:00:04]}  h5 {[%clk 0:00:30]} 42. a6 {[%clk 0:00:05]}  Rc2 {[%clk 0:00:30]} 43. a7 {[%clk 0:00:04]}  Ra2 {[%clk 0:00:30]} 44. Rb8+ {[%clk 0:00:05]} 1-0


[Site "https://www.chess.com"]